Cogmind - Beta 16.1 @@@ ROGUE MODE // 2026.01.03 @ 18:05:34 Player: Jay Result: Destroyed by H-55 Commando with Gauss Rifle Performance ------------- Evolutions (2) 1000 Regions Visited (4) 800 Robots Destroyed (30) 150 Value Destroyed (968) 968 Prototype IDs (0) 0 Alien Tech Used (0) 0 Bonus (200) 200 TOTAL SCORE: 3118 Bonus ------- Pacifist 200 Cogmind --------- Core Integrity 0/550 Matter 254/300 Energy 99/100 System Corruption 2% Temperature Cool (0) Movement Core (250) Ox4 Location -8/Materials Parts ------- > --- POWER (2) -------- (None) > --- PROPULSION (2) --- (None) > --- UTILITY (4) ------ Heat Sink Small Storage Unit Signal Interpreter > --- WEAPON (3) ------- Heavy Assault Rifle EMP Blaster > --- INVENTORY (8) ---- Medium Laser Medium Laser Faulty Improved Medium Laser Botcube Peak State ------------ > --- POWER ------------ Deuterium Engine Light Deuterium Engine > --- PROPULSION ------- Aluminum Leg Aluminum Leg > --- UTILITY ---------- Heat Sink Small Storage Unit Signal Interpreter Light Armor Plating > --- WEAPON ----------- Assault Rifle Light Assault Rifle Light Assault Rifle > --- INVENTORY -------- Improved Ion Engine Medium Laser Medium Laser Improved Medium Laser Heavy Assault Rifle EMP Blaster Grenade Launcher Botcube [Rating: 17] Favorites ----------- Power Ion Engine Engine Ion Engine Propulsion Aluminum Leg Leg Aluminum Leg Utility Small Storage Unit Device Heat Sink Storage Small Storage Unit Processor Signal Interpreter Protection Weapon Shielding Weapon Light Assault Rifle Ballistic Gun Light Assault Rifle Ballistic Cannon Assault Cannon Launcher Grenade Launcher Build | -11 -10 -9 -9 -8 ------- Run | Yrd Mat Mat Min Mat Slots Evolved 4 | . . 2 . 2 Power 1 | . . 1 . . Propulsion . | . . . . . Utility 2 | . . 1 . 1 Weapon 1 | . . . . 1 Parts Attached 26 | 6 1 2 1 16 Power 8 | 1 . 1 1 5 Engine 8 | 1 . 1 1 5 Core . | . . . . . Reactor . | . . . . . Propulsion 4 | 2 . . . 2 Treads . | . . . . . Leg 4 | 2 . . . 2 Wheel . | . . . . . Hover . | . . . . . Flight . | . . . . . Utility 6 | 1 1 1 . 3 Device 1 | . . . . 1 Storage 1 | 1 . . . . Processor 1 | . 1 . . . Hackware . | . . . . . Protection 3 | . . 1 . 2 Artifact . | . . . . . Weapon 8 | 2 . . . 6 Energy Gun . | . . . . . Energy Cannon . | . . . . . Ballistic Gun 5 | 2 . . . 3 Ballistic Cannon 1 | . . . . 1 Launcher 2 | . . . . 2 Special Weapon . | . . . . . Impact Weapon . | . . . . . Slashing Weapon . | . . . . . Piercing Weapon . | . . . . . Special Melee Weapon . | . . . . . Unidentified Prototypes . | . . . . . Parts Lost 16 | . . . . 16 Power 5 | . . . . 5 Propulsion 2 | . . . . 2 Utility 3 | . . . . 3 Weapon 6 | . . . . 6 Highest Loss Streak 6 | . . . . 6 To Critical Strikes . | . . . . . Average Backups 6 | 2 4 6 7 6 Power 1 | . 2 2 1 . Propulsion . | . . . . . Utility . | . . . 1 . Weapon 4 | . 2 4 4 5 Tool/Special . | . . . . . Unused Backups 4 | . 1 . . 3 Power . | . . . . . Propulsion . | . . . . . Utility . | . . . . . Weapon 4 | . 1 . . 3 Tool/Special . | . . . . . Average Slot Usage (%) 94 | . 92 99 100 90 Engine 17 | . 14 22 22 15 Leg 19 | . 28 22 22 15 Device 1 | . . . . 3 Storage 10 | . 14 11 11 9 Processor 9 | . 7 11 11 9 Protection 9 | . . 10 11 10 Ballistic Gun 22 | . 28 22 22 21 Ballistic Cannon 1 | . . . . 3 Peak Build Rating 17 | 7 8 10 10 17 Average Rating 11 | 3 7 9 9 13 On Entrance 7 | . 7 8 10 10 Avg Prop Armor Cover (%) 6 | . . . . 6 Naked Turns . | . . . . . Heaviest Build 28 | 13 13 19 19 28 Greatest Support 20 | 20 20 20 20 20 Greatest Overweight (x) 5 | 1 . . . 5 Average Overweight (x) . | . . . . . Largest Inventory Capacity 8 | 8 8 8 8 8 Average Capacity 7 | 7 8 8 8 8 Most Carried 8 | 6 8 8 8 8 Average Carried 7 | 2 5 7 7 7 Final Capacity 8 | 8 8 8 8 8 Final Carried 8 | 3 8 8 8 4 Class Distribution -------------------- 54% | Mutant 23% | Tank 13% | Scavenger-Tank 8% | Gunner Dominant Class ---------------- Mutant | -10/Materials Mutant | -9/Materials Mutant | -9/Mines Tank | -8/Materials Resources | -11 -10 -9 -9 -8 ----------- Run | Yrd Mat Mat Min Mat Matter Collected 945 | 219 . 34 14 678 Remotely . | . . . . . Salvage Created 1180 | . . 34 14 1132 Parts 58 | . . 2 . 56 Haulers Intercepted . | . . . . . Recyclers Shooed 1 | . . . . 1 Parts Field Recycled . | . . . . . Retrieved Matter . | . . . . . Parts Self-Destructed . | . . . . . Prevented . | . . . . . Parts Restored . | . . . . . Kills | -11 -10 -9 -9 -8 ------- Run | Yrd Mat Mat Min Mat Combat Hostiles Destroyed 17 | . . 1 . 16 Guns 5 | . . 1 . 4 Cannons 6 | . . . . 6 AOE 6 | . . . . 6 Classes Destroyed 6 | . . 1 . 5 Worker 2 | . . . . 2 Builder 2 | . . . . 2 Recycler 5 | . . . . 5 Watcher 4 | . . . . 4 Grunt 14 | . . 1 . 13 Sentry 3 | . . . . 3 Best Kill Streak 5 | . . 1 . 5 Combat Bots Only 4 | . . 1 . 4 Max Kills in Single Turn 2 | . . 1 . 2 Gunslinging . | . . . . . Exploded 2 | . . . . 2 Melee . | . . . . . Uniques/NPCs Destroyed . | . . . . . Combat | -11 -10 -9 -9 -8 -------- Run | Yrd Mat Mat Min Mat Hostile Shots Fired 219 | . . 63 . 156 Missed 61 | . . 22 . 39 Hits 158 | . . 41 . 117 Projectile 158 | . . 41 . 117 Critical Strikes 1 | . . . . 1 Damage Taken 2411 | . . 362 . 2049 Core 619 | . . 57 . 562 Absorbed by Shields . | . . . . . Redirected to Shielding 109 | . . 22 . 87 Regen/Repaired (Parts) 126 | . . . . 126 Core Remaining (%) 95 | 100 100 . 85 . Volleys Fired 96 | . 1 8 2 85 Largest 3 | . 2 2 2 3 Hottest 90 | . 40 40 40 90 Shots Fired 235 | . 2 16 4 213 Gun 192 | . 2 16 4 170 Cannon 29 | . . . . 29 Launcher 14 | . . . . 14 Special . | . . . . . Kinetic 221 | . 2 16 4 199 Thermal . | . . . . . Explosive 8 | . . . . 8 Electromagnetic 6 | . . . . 6 Robot Hit Streak 11 | . 1 5 7 11 Robot Miss Streak 7 | . 1 7 . 5 Penetration Max . | . . . . . Secondary Targets . | . . . . . Shots Hit Robots 145 | . 1 8 4 132 Core Hits 73 | . . 4 2 67 Critical Kills . | . . . . . Critical Parts Destroyed . | . . . . . Critical Strikes . | . . . . . Melee Attacks . | . . . . . Impact . | . . . . . Slashing . | . . . . . Piercing . | . . . . . Sneak Attacks . | . . . . . Combat Hostiles . | . . . . . Follow-up Attacks . | . . . . . Damage Inflicted 2286 | . 19 73 35 2159 Guns 1170 | . 8 73 35 1054 Cannons 450 | . . . . 450 Explosions 655 | . . . . 655 Melee . | . . . . . Ramming 11 | . 11 . . . Kinetic 1620 | . 8 73 35 1504 Thermal . | . . . . . Explosive 421 | . . . . 421 Electromagnetic 234 | . . . . 234 Impact . | . . . . . Slashing . | . . . . . Piercing . | . . . . . Highest Corruption 2 | . . . . 2 Average Corruption 1 | . . . . 1 Corruption Purged . | . . . . . Corruption Blocked . | . . . . . Effects 7 | . . . . 7 Message Errors 2 | . . . . 2 Heat Flow Errors 1 | . . . . 1 Energy Discharges 1 | . . . . 1 Misfires 1 | . . . . 1 Weapon Failures 2 | . . . . 2 Overload Shots . | . . . . . Overflow Damage 66 | . . . . 66 Projectiles . | . . . . . Explosions 66 | . . . . 66 Melee . | . . . . . Knockbacks 6 | . . . . 6 Impact . | . . . . . Kinetic 6 | . . . . 6 Secondary . | . . . . . Self-Inflicted Damage 232 | . . . . 232 Shots 11 | . . . . 11 Rammed . | . . . . . Targets Rammed 1 | . 1 . . . Kicked 1 | . 1 . . . Crushed . | . . . . . Highest Temperature 420 | . . 10 4 420 Average Temperature 109 | . . 3 3 121 Received Heat Transfer 792 | . . 27 . 765 Effects 5 | . . . . 5 Shutdowns 3 | . . . . 3 Interference 1 | . . . . 1 Short Circuit 1 | . . . . 1 Siege Activations . | . . . . . Martial Activations . | . . . . . Shielding Activations . | . . . . . Robots Disrupted . | . . . . . Combat Hostiles . | . . . . . Robots Corrupted . | . . . . . Combat Hostiles . | . . . . . Parts Fried . | . . . . . Impact Corruptions . | . . . . . Robots Melted . | . . . . . Combat Hostiles . | . . . . . Parts Melted . | . . . . . Heat Transferred . | . . . . . Parts Sabotaged . | . . . . . Parts Stolen . | . . . . . Parts Stripped . | . . . . . Power Chain Reactions 1 | . . . . 1 Alert | -11 -10 -9 -9 -8 ------- Run | Yrd Mat Mat Min Mat Maximum Alert Level . | . . . . . Low Security (%) 100 | 100 100 100 100 100 Level 1 . | . . . . . Level 2 . | . . . . . Level 3 . | . . . . . Level 4 . | . . . . . Level 5 . | . . . . . High Security . | . . . . . Max Security . | . . . . . Peak Influence 178 | . . 30 5 178 Initial 5 | . . . 5 1 Average 30 | . . 3 . 60 Influence Increases 630 | . . 50 5 575 Destroy 0b10 Robot/C 340 | . . 20 . 320 Destroy 0b10 Robot/NC 70 | . . . 5 65 Destroy Leader 78 | . . 10 . 68 Successful Hack 17 | . . 5 . 12 Disable Machine 60 | . . . . 60 Destroy Structure 50 | . . . . 50 Lose Combat Pursuer 15 | . . 15 . . Influence Decreases 479 | . . 35 15 429 Entered New Map 14 | . . . 10 4 Time Decay 305 | . . 35 5 265 Lost Part 160 | . . . . 160 Squads Dispatched 5 | . . 2 . 3 Investigation 1 | . . . . 1 Extermination . | . . . . . Reinforcement 4 | . . 2 . 2 Assault . | . . . . . Garrison . | . . . . . Intercept . | . . . . . Searches Triggered . | . . . . . Construction Impeded 2 | . . . . 2 Haulers Reinforced . | . . . . . Active Scanning Responses . | . . . . . Cargo Convoy Interrupts . | . . . . . Stealth | -11 -10 -9 -9 -8 --------- Run | Yrd Mat Mat Min Mat Distress Signals 2 | . . . . 2 Communications Jammed . | . . . . . Distress Signals . | . . . . . Times Spotted 37 | . 1 11 . 25 Peak Tracking Total 7 | . 2 7 . 3 Tactical Retreats 1 | . . 1 . . Traps | -11 -10 -9 -9 -8 ------- Run | Yrd Mat Mat Min Mat Traps Triggered . | . . . . . Indirectly . | . . . . . Trap Hack Attempts . | . . . . . Triggered . | . . . . . Disarmed . | . . . . . Reprogrammed . | . . . . . Reused . | . . . . . Traps Extracted . | . . . . . Installed . | . . . . . Triggered . | . . . . . Machines | -11 -10 -9 -9 -8 ---------- Run | Yrd Mat Mat Min Mat Machines Disabled 4 | . . . . 4 Max in Single Turn 2 | . . . . 2 Machines Repaired . | . . . . . Machines Dismantled . | . . . . . Machines Sabotaged . | . . . . . Overloaded Fab Kills . | . . . . . Hacking | -11 -10 -9 -9 -8 --------- Run | Yrd Mat Mat Min Mat Machines Accessed 6 | . 1 1 . 4 Terminals 5 | . 1 1 . 3 Fabricators . | . . . . . Repair Stations 1 | . . . . 1 Recycling Units . | . . . . . Scanalyzers . | . . . . . Garrison Access . | . . . . . Total Hacks 17 | . 1 5 . 11 Successful 11 | . . 4 . 7 Failed 6 | . 1 1 . 4 Catastrophic 2 | . . . . 2 Database Lockouts . | . . . . . Manual . | . . . . . Terminals 11 | . 1 5 . 5 Fabricators . | . . . . . Repair Stations 6 | . . . . 6 Recycling Units . | . . . . . Scanalyzers . | . . . . . Garrison Access . | . . . . . Terminal Hacks 6 | . . 4 . 2 Record 4 | . . 2 . 2 Emergency Access Points 1 | . . 1 . . Alert Level 1 | . . 1 . . Fabricator Hacks . | . . . . . Repair Station Hacks 5 | . . . . 5 Scan Component 3 | . . . . 3 Repair 2 | . . . . 2 Recycling Unit Hacks . | . . . . . Scanalyzer . | . . . . . Garrison Access Hacks . | . . . . . Unauthorized Hacks . | . . . . . Terminals . | . . . . . Fabricators . | . . . . . Repair Stations . | . . . . . Recycling Units . | . . . . . Scanalyzers . | . . . . . Garrison Access . | . . . . . Data Cores Recovered . | . . . . . Used . | . . . . . Hacking Detections 4 | . 1 1 . 2 Full Trace Events 1 | . . . . 1 Feedback Events . | . . . . . Feedback Blocked . | . . . . . Robot Schematics Acquired . | . . . . . Robots Built . | . . . . . Authchips . | . . . . . Time . | . . . . . Total Robot Build Rating . | . . . . . Part Schematics Acquired . | . . . . . Parts Built . | . . . . . Authchips . | . . . . . Time . | . . . . . Total Part Build Rating . | . . . . . Part Studies Acquired . | . . . . . Parts Repaired 2 | . . . . 2 Time 52 | . . . . 52 Parts Recycled . | . . . . . Recycled Matter . | . . . . . Retrieved Matter . | . . . . . Retrieved Components . | . . . . . Parts Scanalyzed . | . . . . . Part Schematics Acquired . | . . . . . Parts Damaged . | . . . . . Bothacking | -11 -10 -9 -9 -8 ------------ Run | Yrd Mat Mat Min Mat Used RIF Installer . | . . . . . Robots Hacked . | . . . . . Non-combat . | . . . . . Combat . | . . . . . Robot Hacks Applied . | . . . . . Relay Couplers Released . | . . . . . Fabnet Peak Effective % . | . . . . . Robots Rewired . | . . . . . Allies Hacked . | . . . . . Hacks Repelled . | . . . . . Allies | -11 -10 -9 -9 -8 -------- Run | Yrd Mat Mat Min Mat Total Allies 2 | 2 . . . . Largest Group . | . . . . . Highest-Rated Group . | . . . . . Highest-Rated Ally . | . . . . . Total Orders . | . . . . . Ally Attacks . | . . . . . Total Damage . | . . . . . Kills . | . . . . . Allies Corrupted . | . . . . . Allies Melted . | . . . . . Intel | -11 -10 -9 -9 -8 ------- Run | Yrd Mat Mat Min Mat Active Infowar (turns) . | . . . . . Robot Analysis Total . | . . . . . Derelict Logs Recovered 1 | . . . 1 . Drone Launches . | . . . . . Drone Recoveries . | . . . . . Exploration | -11 -10 -9 -9 -8 ------------- Run | Yrd Mat Mat Min Mat Turns Passed 1897 | 78 190 408 296 925 Spaces Moved 920 | 70 147 151 239 313 Core 50 | 44 . . . 6 Treads . | . . . . . Legs 870 | 26 147 151 239 307 Wheels . | . . . . . Hover . | . . . . . Flight . | . . . . . Fastest Speed 50 | 50 120 120 120 120 Average Speed 139 | 86 120 120 120 184 Slowest Speed 300 | 120 120 120 120 300 Overloaded Moves . | . . . . . Propulsion Burnouts . | . . . . . Robots Hopped . | . . . . . Potential Cave-ins . | . . . . . Cave-ins Triggered . | . . . . . Exploration Rate (%) 26 | 4 27 20 51 31 Regions Visited 4 Branch Regions 1 Pre-discovered Areas 1 | . . . 1 . Known Exits Taken 3 | . 1 1 1 . Unknown Exits Taken 1 | 1 . . . . Scrap Searched . | . . . . . Spaces Dug . | . . . . . Terrain Destroyed 55 | . . . . 55 Melee . | . . . . . Projectile 4 | . . . . 4 AOE 51 | . . . . 51 Terrain Rammed . | . . . . . Walls Destroyed . | . . . . . Machines Disabled . | . . . . . Actions | -11 -10 -9 -9 -8 --------- Run | Yrd Mat Mat Min Mat Total 1364 | 89 159 363 245 508 Wait 276 | . 2 201 2 71 Move 916 | 69 146 150 238 313 Hop . | . . . . . Pick Up 33 | 11 7 2 1 12 Fast Attach 2 | . . . . 2 Attach 26 | 6 1 2 1 16 Detach 1 | . . . . 1 Swap 3 | . . . . 3 Drop 10 | 3 1 . 1 5 Fire 96 | . 1 8 2 85 Melee . | . . . . . Ram . | . . . . . Kick 1 | . 1 . . . Crush . | . . . . . Escape Stasis . | . . . . . Rewire . | . . . . . Trap . | . . . . . Miscellaneous . | . . . . . Route ------- -11/Scrapyard -10/Materials -9/Materials -9/Mines -8/Materials History --------- Turn | Location | Event 2 | -11/Scrapyard | Met Revision 17 4 | -11/Scrapyard | Discovered new exit (range 15) 11 | -11/Scrapyard | Found Botcube 17 | -11/Scrapyard | Botcube activated 21 | -11/Scrapyard | Botcube activated 55 | -11/Scrapyard | Found Botcube 79 | -11/Scrapyard | Entered Materials 256 | -10/Materials | Discovered new exit (range 10) 268 | -10/Materials | Identified exit to Materials 269 | -10/Materials | Entered another Materials area 269 | -9/Materials | Evolved 2 slots: Power x1, Utility x1 319 | -9/Materials | Build established: Mutant 664 | -9/Materials | Discovered new exit (range 7) 676 | -9/Materials | Identified exit to Mines 677 | -9/Materials | Entered Mines 695 | -9/Mines | YI-UF0 nonchalantly dropped a Grenade Launcher on the ground 745 | -9/Mines | Learned location of Storage (-8) 952 | -9/Mines | Discovered new exit (range 14) 972 | -9/Mines | Identified exit to Materials 973 | -9/Mines | Entered Materials 973 | -8/Materials | Evolved 2 slots: Utility x1, Weapon x1 1015 | -8/Materials | Repaired Aluminum Leg 1043 | -8/Materials | Repaired Aluminum Leg 1268 | -8/Materials | Build established: Tank 1477 | -8/Materials | Lost 5 parts (2p1u2w) 1740 | -8/Materials | Core integrity fell below 50% 1853 | -8/Materials | Core integrity fell below 20% 1898 | -8/Materials | Destroyed by H-55 Commando with Gauss Rifle Last Messages --------------- crushing effect. 01878_ R-06 Scavenger destroyed. 01878_ 53 Matter crushed. 01879_ K-01 Serf collects debris. 01879_ Slug penetrates Wall. 01881_ R-06 Scavenger collects Tractor Beam. 01882_ Slug penetrates Wall. 01883_ K-01 Serf collects debris. 01885_ R-06 Scavenger collects Com. Wheel. 01888_ R-06 Scavenger destroyed. 01888_ K-01 Serf collects debris. 01890_ Lgt. Assault Rifle destroyed. 01892_ K-01 Serf destroyed. 01893_ K-01 Serf collects debris. 01894_ U-05 Engineer builds a Wall. 01896_ K-01 Serf collects debris. 01896_ Critical hit (Burn: +37). 01897_ U-05 Engineer lays Concrete. 01898_ G-47 Trooper destroyed. 01898_ Slug penetrates Wall. Map ----- +----------------------------------------------------+ | ?????????????????????????????????????????????????? | | ?????????????????????????????????????????????????? | | ?????????????????????????????????????????????????? | | ?????????????????????????????????????????????????? | | ?????????????????????????????????????????????????? | | ?????????????????????????????????????????????????? | | ?????????????????????????????????????????????????? | | ?????????????????????????????????????????????????? | | ?????????????????????????????????????????????????? | | ?????????????????????????????????????????????????? | | ?????????????????????????????????????????????????? | | ???????????????????????? ??????????????????????? | | ???????????????????????? ????????????????????? | | ??????????????# ???????? [* ???????????????????? | | ??????????????# ??##### ** "???#???????????????? | | ??????????????? ?? + * """ ????????????????? | | ???????????????? ###### """ ????????????????? | | ?????????????????## =!# ????????????????? | | ?????????????????# # ?????????????????? | | ?????????????????# #########?????????????????? | | ????????????????## ; #?????????????????? | | ????????????????## ;##?????????????????? | | ?????????????????#[ ; #?????????????????? | | ?????????????????# k ;#??????????????????? | | ?????????????????# #??????????????????? | | ?????????????????# @ #######????????????? | | ????????????????## **= # #??????????? | | ?????????????############=;## """ ???????????? | | ?????????????# h!%k= """ #??????????? | | ?????????????# u!=!= """ #??????????? | | ?????????????# %= +??????????? | | ?????????????# # """ #??????????? | | ????????????## # """ ?#??????????? | | ????????????#" ##?""" ????????????? | | ????????????#" ##?? ???????????????? | | ????????????#" ##???#???????????????? | | ????????????#" ##???????????????????? | | ????????????#" ##???????????????????? | | ????????????## % ##???????????????????? | | ?????????????# ##??##???????????????? | | ?????????????# ## ## ####T################# | | ?????????????# ######## #+# | | ?????????????# ????# # | | ???????????? ?????# # % ?? | | ?????????? ??????# / #???????????###### | | ????????? ??????# ! # #????????????????? | | ?????????#####???????# # #???? ?????????? | | ?????????????????????# # #??"" ?#???????? | | ?????????????????????######## # """ #???????? | | ????????????????????????????# + #???????? | +----------------------------------------------------+ Best States ------------- Heat Dissipation 41 Energy Generation 23 Energy Capacity 415 Matter Stores 300 Matter Capacity 300 Sight Range 16 Terrain Scan Density 10 Armor Coverage 150 Weapon Shielding 33 Evasion (%) 55 Item Schematics ----------------- None Robot Schematics ------------------ None Fabricated ------------ Nothing Repaired ---------- Aluminum Leg | 25% | -8/Materials Aluminum Leg | 34% | -8/Materials Studied --------- None Alien Tech Used ----------------- None Achievements -------------- Frankenstein Resistances Are Futile You Again Challenges ------------ None Game ------ Seed MobileElectrostormClaw Manual? 0 Play Time 00:22:39 Cumulative 55.1 hours Start 2026.01.03 @ 17:42:21 End 2026.01.03 @ 18:05:34 Sessions 1 Manual Loads 0 Difficulty Rogue Special Mode None Game No. 103 Rogue 91 Adventurer 12 Explorer 0 Win Type - Total 0 Types 0/0/0/0/0/0/0/0/0/0 Lore% 10 Gallery% 23 Achievement% 14 Wizard Run 0 Options --------- Layout 2 ASCII 0 Keyboard 0 Movement Mouse Keybinds 0 Fullscreen 2 Font 24/Smallcaps Map View 50x44 Zoom Use 0% Tactical HUD 1 Map Filters NONE Filters NONE Steam 1 RUN: 1579a3f7-e985-4ed7-b49f-c6e32bb0e6ac